[Event "*** SCC Grand Prix: Titled Tuesday Blitz"]
[Site "Chess.com"]
[Date "2020.08.11"]
[Round "8"]
[White "kuban1991"]
[Black "Bodnar_Mykola"]
[Result "1-0"]
[WhiteElo "2756"]
[BlackElo "2548"]
[TimeControl "180+1"]
[EndTime "11:34:46 PDT"]
[Termination "kuban1991 won by resignation"]

1. Nf3 {[%clk 0:03:00]} 1... Nf6 {[%clk 0:02:59.9]} 2. g3 {[%clk 0:02:59.4]}
2... b6 {[%clk 0:03:00.2]} 3. Bg2 {[%clk 0:03:00.3]} 3... Bb7 {[%clk 0:03:01.1]}
4. O-O {[%clk 0:03:00.7]} 4... e6 {[%clk 0:03:00.8]} 5. d3 {[%clk 0:03:00.1]}
5... d5 {[%clk 0:03:00.1]} 6. Nbd2 {[%clk 0:02:58.8]} 6... c5 {[%clk 0:03:00.3]}
7. e4 {[%clk 0:02:58.3]} 7... Nc6 {[%clk 0:03:00.7]} 8. e5 {[%clk 0:02:57.9]}
8... Nd7 {[%clk 0:03:00.9]} 9. Re1 {[%clk 0:02:58.6]} 9... Qc7 {[%clk
0:03:00.8]} 10. Qe2 {[%clk 0:02:58.8]} 10... Be7 {[%clk 0:03:01.2]} 11. h4
{[%clk 0:02:57.3]} 11... O-O-O {[%clk 0:03:00.1]} 12. Nf1 {[%clk 0:02:57.4]}
12... h6 {[%clk 0:02:59]} 13. N1h2 {[%clk 0:02:57.5]} 13... Rdg8 {[%clk
0:02:58.4]} 14. Ng4 {[%clk 0:02:57.5]} 14... g5 {[%clk 0:02:54.2]} 15. h5 {[%clk
0:02:53.4]} 15... Kb8 {[%clk 0:02:49]} 16. c3 {[%clk 0:02:50.7]} 16... Re8
{[%clk 0:02:43]} 17. d4 {[%clk 0:02:37.6]} 17... f5 {[%clk 0:02:23.4]} 18. exf6
{[%clk 0:02:36.5]} 18... Nxf6 {[%clk 0:02:23.6]} 19. Nxf6 {[%clk 0:02:22.7]}
19... Bxf6 {[%clk 0:02:24.5]} 20. Be3 {[%clk 0:02:00.4]} 20... e5 {[%clk
0:02:00.1]} 21. dxc5 {[%clk 0:01:52.1]} 21... d4 {[%clk 0:01:59.9]} 22. cxb6
{[%clk 0:01:50.9]} 22... Qxb6 {[%clk 0:01:56.9]} 23. Bd2 {[%clk 0:01:45.4]}
23... e4 {[%clk 0:01:13]} 24. Nxd4 {[%clk 0:01:43.3]} 24... Bxd4 {[%clk
0:01:13.1]} 25. cxd4 {[%clk 0:01:41.3]} 25... Nxd4 {[%clk 0:01:14]} 26. Qd1
{[%clk 0:01:03.6]} 26... Nf3+ {[%clk 0:01:12.8]} 27. Bxf3 {[%clk 0:00:45.9]}
27... exf3 {[%clk 0:01:13.7]} 28. Bc3 {[%clk 0:00:43.4]} 28... Rxe1+ {[%clk
0:01:06.5]} 29. Qxe1 {[%clk 0:00:44.3]} 29... Rd8 {[%clk 0:01:04.1]} 30. Qe5+
{[%clk 0:00:39.2]} 30... Ka8 {[%clk 0:00:54.3]} 31. Re1 {[%clk 0:00:39.3]} 31...
Qc6 {[%clk 0:00:41.2]} 32. Qf6 {[%clk 0:00:36.9]} 32... Qxf6 {[%clk 0:00:31.2]}
33. Bxf6 {[%clk 0:00:36.9]} 33... Rc8 {[%clk 0:00:30.7]} 34. Bg7 {[%clk
0:00:35.7]} 34... Rc6 {[%clk 0:00:30.4]} 35. Re8+ {[%clk 0:00:33.7]} 35... Bc8
{[%clk 0:00:30.6]} 36. Bxh6 {[%clk 0:00:30.3]} 36... Rc1+ {[%clk 0:00:20]} 37.
Kh2 {[%clk 0:00:29.5]} 37... Rc2 {[%clk 0:00:20.9]} 38. g4 {[%clk 0:00:27.1]}
38... Rxf2+ {[%clk 0:00:17.4]} 39. Kg3 {[%clk 0:00:27.3]} 39... Rc2 {[%clk
0:00:18.3]} 40. Bxg5 {[%clk 0:00:27.1]} 40... Rc4 {[%clk 0:00:18.1]} 41. Kxf3
{[%clk 0:00:24.1]} 41... Kb7 {[%clk 0:00:17.1]} 42. Bf4 {[%clk 0:00:22.6]} 42...
Bd7 {[%clk 0:00:15.4]} 43. Re7 {[%clk 0:00:22.7]} 43... Kc8 {[%clk 0:00:15.3]}
44. h6 {[%clk 0:00:22.1]} 44... Bc6+ {[%clk 0:00:15.7]} 45. Kg3 {[%clk
0:00:21.9]} 45... Rc2 {[%clk 0:00:14]} 46. h7 {[%clk 0:00:18.5]} 1-0

[Event "*** SCC Grand Prix: Titled Tuesday Blitz"]
[Site "Chess.com"]
[Date "2020.08.11"]
[Round "8"]
[White "Juanovic"]
[Black "Ashedu66"]
[Result "1-0"]
[WhiteElo "2088"]
[BlackElo "2253"]
[TimeControl "180+1"]
[EndTime "11:34:46 PDT"]
[Termination "Juanovic won on time"]

1. e4 {[%clk 0:03:00.9]} 1... e5 {[%clk 0:02:57.6]} 2. Nf3 {[%clk 0:03:00.7]}
2... Nc6 {[%clk 0:02:56.9]} 3. Bb5 {[%clk 0:02:59.9]} 3... Nge7 {[%clk
0:02:56.5]} 4. O-O {[%clk 0:02:58.8]} 4... g6 {[%clk 0:02:56.7]} 5. c3 {[%clk
0:02:51.4]} 5... Bg7 {[%clk 0:02:56]} 6. d4 {[%clk 0:02:44]} 6... exd4 {[%clk
0:02:55.8]} 7. cxd4 {[%clk 0:02:44.9]} 7... d5 {[%clk 0:02:55.6]} 8. Bxc6+
{[%clk 0:02:41]} 8... bxc6 {[%clk 0:02:53.7]} 9. e5 {[%clk 0:02:40.9]} 9... O-O
{[%clk 0:02:53.2]} 10. Bg5 {[%clk 0:02:33.6]} 10... h6 {[%clk 0:02:50.6]} 11.
Bh4 {[%clk 0:02:30.4]} 11... g5 {[%clk 0:02:45.9]} 12. Bg3 {[%clk 0:02:23.8]}
12... Nf5 {[%clk 0:02:43.1]} 13. Nc3 {[%clk 0:02:20.1]} 13... f6 {[%clk
0:02:27.8]} 14. Re1 {[%clk 0:02:05.9]} 14... Nxg3 {[%clk 0:01:49.2]} 15. hxg3
{[%clk 0:02:05.2]} 15... Bg4 {[%clk 0:01:42]} 16. Qa4 {[%clk 0:01:55.9]} 16...
Bxf3 {[%clk 0:01:28.4]} 17. exf6 {[%clk 0:01:52.1]} 17... Bxf6 {[%clk
0:01:11.8]} 18. gxf3 {[%clk 0:01:50.3]} 18... Qd6 {[%clk 0:01:02.1]} 19. Rad1
{[%clk 0:01:20.1]} 19... Rab8 {[%clk 0:00:39.3]} 20. Qc2 {[%clk 0:01:16.6]}
20... Kg7 {[%clk 0:00:36.2]} 21. Kg2 {[%clk 0:01:16.3]} 21... Rbe8 {[%clk
0:00:31.3]} 22. Rxe8 {[%clk 0:00:57.7]} 22... Rxe8 {[%clk 0:00:30.6]} 23. Qf5
{[%clk 0:00:50.8]} 23... Re7 {[%clk 0:00:26.5]} 24. Na4 {[%clk 0:00:44.6]} 24...
Qe6 {[%clk 0:00:19.1]} 25. Qd3 {[%clk 0:00:34.2]} 25... Qd6 {[%clk 0:00:16.5]}
26. Nc5 {[%clk 0:00:32.9]} 26... Re8 {[%clk 0:00:15.8]} 27. Qf5 {[%clk
0:00:31.6]} 27... Re7 {[%clk 0:00:15.1]} 28. Nd3 {[%clk 0:00:23.5]} 28... Bxd4
{[%clk 0:00:12.2]} 29. f4 {[%clk 0:00:22.9]} 29... Bf6 {[%clk 0:00:11.6]} 30.
fxg5 {[%clk 0:00:22.1]} 30... Bxg5 {[%clk 0:00:10.9]} 31. Qg4 {[%clk 0:00:18.4]}
31... Qe6 {[%clk 0:00:10]} 32. Qh5 {[%clk 0:00:08.6]} 32... Qe4+ {[%clk
0:00:09]} 33. f3 {[%clk 0:00:07.2]} 33... Qg6 {[%clk 0:00:07.2]} 34. Qg4 {[%clk
0:00:06.2]} 34... Qe6 {[%clk 0:00:06.4]} 35. Qxe6 {[%clk 0:00:04.4]} 35... Rxe6
{[%clk 0:00:06.2]} 36. f4 {[%clk 0:00:05.3]} 36... Bf6 {[%clk 0:00:05.5]} 37.
Kf3 {[%clk 0:00:06.2]} 37... Re4 {[%clk 0:00:05.1]} 38. b3 {[%clk 0:00:05.9]}
38... Re8 {[%clk 0:00:02.8]} 39. Rc1 {[%clk 0:00:06.3]} 39... Re6 {[%clk
0:00:02.3]} 40. f5 {[%clk 0:00:06.9]} 40... Rd6 {[%clk 0:00:02.2]} 41. g4 {[%clk
0:00:06.5]} 41... Kf7 {[%clk 0:00:02.1]} 42. Nc5 {[%clk 0:00:07]} 42... Ke7
{[%clk 0:00:01.9]} 43. Ne6 {[%clk 0:00:07.5]} 43... d4 {[%clk 0:00:01.4]} 44.
Ke4 {[%clk 0:00:07.1]} 44... Rd5 {[%clk 0:00:01]} 45. Kd3 {[%clk 0:00:07.1]} 1-0

[Event "*** SCC Grand Prix: Titled Tuesday Blitz"]
[Site "Chess.com"]
[Date "2020.08.11"]
[Round "8"]
[White "Enriquack"]
[Black "Anna_ChessMate"]
[Result "0-1"]
[WhiteElo "2339"]
[BlackElo "2590"]
[TimeControl "180+1"]
[EndTime "11:34:48 PDT"]
[Termination "Anna_ChessMate won by resignation"]

1. e4 {[%clk 0:03:00.9]} 1... c6 {[%clk 0:03:00.2]} 2. d4 {[%clk 0:03:00.1]}
2... d5 {[%clk 0:03:01.1]} 3. e5 {[%clk 0:02:59.8]} 3... Bf5 {[%clk 0:03:00.8]}
4. Nf3 {[%clk 0:02:59.9]} 4... e6 {[%clk 0:03:00.6]} 5. Be2 {[%clk 0:02:59.6]}
5... Nd7 {[%clk 0:02:58]} 6. O-O {[%clk 0:02:55.5]} 6... h6 {[%clk 0:02:58.3]}
7. Nbd2 {[%clk 0:02:52.2]} 7... Ne7 {[%clk 0:02:57.2]} 8. Nb3 {[%clk 0:02:45.5]}
8... g5 {[%clk 0:02:57.3]} 9. Ne1 {[%clk 0:02:44.9]} 9... Qc7 {[%clk 0:02:56.8]}
10. Nd3 {[%clk 0:02:43.9]} 10... Bg7 {[%clk 0:02:57.1]} 11. a4 {[%clk
0:02:37.4]} 11... O-O {[%clk 0:02:56.7]} 12. f4 {[%clk 0:02:36.9]} 12... f6
{[%clk 0:02:54.6]} 13. exf6 {[%clk 0:02:29.6]} 13... Nxf6 {[%clk 0:02:52.9]} 14.
fxg5 {[%clk 0:02:29.8]} 14... hxg5 {[%clk 0:02:51.8]} 15. Bxg5 {[%clk
0:02:29.9]} 15... Ne4 {[%clk 0:02:52.3]} 16. Bf4 {[%clk 0:02:27.1]} 16... Qd8
{[%clk 0:02:52.3]} 17. Ne5 {[%clk 0:02:25.7]} 17... Ng6 {[%clk 0:02:51]} 18.
Nxg6 {[%clk 0:02:22.7]} 18... Bxg6 {[%clk 0:02:51.9]} 19. Bg4 {[%clk 0:02:12.1]}
19... Qe7 {[%clk 0:02:40]} 20. c3 {[%clk 0:02:08.6]} 20... Rae8 {[%clk
0:02:39.8]} 21. Nd2 {[%clk 0:02:05]} 21... Qh4 {[%clk 0:02:39.3]} 22. Nxe4
{[%clk 0:01:59.6]} 22... Bxe4 {[%clk 0:02:40.2]} 23. Qe2 {[%clk 0:01:30.9]}
23... Qh7 {[%clk 0:02:18.8]} 24. Qe3 {[%clk 0:01:17.2]} 24... Qg6 {[%clk
0:02:10.1]} 25. Bh3 {[%clk 0:01:08.8]} 25... Rf7 {[%clk 0:02:04.2]} 26. Bg3
{[%clk 0:00:56.7]} 26... Bh6 {[%clk 0:02:00.1]} 27. Qe1 {[%clk 0:00:50.4]} 27...
Ref8 {[%clk 0:01:52.4]} 28. Rxf7 {[%clk 0:00:47.5]} 28... Rxf7 {[%clk
0:01:53.3]} 29. Be5 {[%clk 0:00:43.4]} 29... a5 {[%clk 0:01:16.5]} 30. Qg3
{[%clk 0:00:42.4]} 30... Qxg3 {[%clk 0:01:16.7]} 31. Bxg3 {[%clk 0:00:38.2]}
31... Be3+ {[%clk 0:01:13.6]} 32. Kh1 {[%clk 0:00:38.4]} 32... Rf6 {[%clk
0:01:00.7]} 33. Re1 {[%clk 0:00:29.8]} 33... Bd2 {[%clk 0:00:58]} 34. Rd1 {[%clk
0:00:25.1]} 34... Bg5 {[%clk 0:00:57.4]} 35. Be5 {[%clk 0:00:23.8]} 35... Rh6
{[%clk 0:00:56.8]} 36. Bg4 {[%clk 0:00:22.3]} 36... Bc2 {[%clk 0:00:52.4]} 37.
Rf1 {[%clk 0:00:21.9]} 37... Bxa4 {[%clk 0:00:49.6]} 38. g3 {[%clk 0:00:20.2]}
38... Bc2 {[%clk 0:00:48.8]} 39. h4 {[%clk 0:00:20.4]} 39... Bxh4 {[%clk
0:00:46.4]} 40. Kg2 {[%clk 0:00:20.8]} 40... Bg5 {[%clk 0:00:44]} 41. Bd6 {[%clk
0:00:15.2]} 41... Be4+ {[%clk 0:00:35.6]} 42. Kf2 {[%clk 0:00:15.2]} 42... Rh2+
{[%clk 0:00:31.6]} 43. Ke1 {[%clk 0:00:15.5]} 43... Bd2+ {[%clk 0:00:26.1]} 44.
Kd1 {[%clk 0:00:15.6]} 44... Bh6 {[%clk 0:00:17.9]} 45. Bxe6+ {[%clk 0:00:14.7]}
45... Kg7 {[%clk 0:00:14.5]} 46. Be5+ {[%clk 0:00:14.9]} 46... Kg6 {[%clk
0:00:13.4]} 47. Rf6+ {[%clk 0:00:13]} 47... Kg5 {[%clk 0:00:13.5]} 48. Rf8
{[%clk 0:00:08.1]} 48... Bxf8 {[%clk 0:00:08.8]} 0-1

[Event "*** SCC Grand Prix: Titled Tuesday Blitz"]
[Site "Chess.com"]
[Date "2020.08.11"]
[Round "8"]
[White "Manukyan_Artak"]
[Black "volcanoexplorer"]
[Result "0-1"]
[WhiteElo "2359"]
[BlackElo "2634"]
[TimeControl "180+1"]
[EndTime "11:34:51 PDT"]
[Termination "volcanoexplorer won by resignation"]

1. e4 {[%clk 0:03:00.9]} 1... e5 {[%clk 0:02:59.7]} 2. Nf3 {[%clk 0:03:00.3]}
2... Nc6 {[%clk 0:02:59.7]} 3. d4 {[%clk 0:02:58.7]} 3... exd4 {[%clk 0:02:59]}
4. Nxd4 {[%clk 0:02:59.1]} 4... Nf6 {[%clk 0:02:56.6]} 5. Nxc6 {[%clk
0:02:59.1]} 5... bxc6 {[%clk 0:02:56.6]} 6. e5 {[%clk 0:02:59.6]} 6... Qe7
{[%clk 0:02:56.5]} 7. Qe2 {[%clk 0:03:00]} 7... Nd5 {[%clk 0:02:56.3]} 8. c4
{[%clk 0:02:59.9]} 8... Nb6 {[%clk 0:02:56.3]} 9. h4 {[%clk 0:02:53.5]} 9... d5
{[%clk 0:02:28.8]} 10. exd6 {[%clk 0:02:51.2]} 10... cxd6 {[%clk 0:02:26.9]} 11.
Nc3 {[%clk 0:02:39.8]} 11... Be6 {[%clk 0:02:14.8]} 12. b3 {[%clk 0:02:38.1]}
12... O-O-O {[%clk 0:02:08.9]} 13. Bb2 {[%clk 0:02:23.2]} 13... d5 {[%clk
0:02:05.8]} 14. cxd5 {[%clk 0:02:21.5]} 14... Nxd5 {[%clk 0:01:48.2]} 15. Nxd5
{[%clk 0:01:56]} 15... Bxd5 {[%clk 0:01:30]} 16. Qxe7 {[%clk 0:01:43.6]} 16...
Bxe7 {[%clk 0:01:30.9]} 17. O-O-O {[%clk 0:01:40]} 17... f6 {[%clk 0:01:21.8]}
18. f3 {[%clk 0:01:30.9]} 18... Bc5 {[%clk 0:01:19.3]} 19. Bd3 {[%clk
0:01:28.5]} 19... Kc7 {[%clk 0:01:13.9]} 20. h5 {[%clk 0:01:14.1]} 20... h6
{[%clk 0:01:12.6]} 21. Bg6 {[%clk 0:01:12.6]} 21... a5 {[%clk 0:01:12.1]} 22.
Bc3 {[%clk 0:01:06.1]} 22... Ra8 {[%clk 0:01:11.4]} 23. Kc2 {[%clk 0:01:04]}
23... Rhb8 {[%clk 0:00:58]} 24. Rb1 {[%clk 0:01:00.7]} 24... a4 {[%clk 0:00:55]}
25. b4 {[%clk 0:01:00.6]} 25... Bd6 {[%clk 0:00:54.8]} 26. a3 {[%clk 0:00:59.5]}
26... Bb3+ {[%clk 0:00:53.8]} 27. Kb2 {[%clk 0:00:59.8]} 27... c5 {[%clk
0:00:52.8]} 28. Be4 {[%clk 0:00:54.6]} 28... cxb4 {[%clk 0:00:45.6]} 29. Bxb4
{[%clk 0:00:47.9]} 29... Be5+ {[%clk 0:00:36]} 30. Kc1 {[%clk 0:00:45.8]} 30...
Ra6 {[%clk 0:00:34.4]} 31. Kd2 {[%clk 0:00:45.3]} 31... Rd8+ {[%clk 0:00:30.2]}
32. Ke2 {[%clk 0:00:45.2]} 32... Bd6 {[%clk 0:00:26]} 33. Rhc1+ {[%clk 0:00:44]}
33... Kb8 {[%clk 0:00:25.9]} 34. Bxd6+ {[%clk 0:00:41]} 34... Raxd6 {[%clk
0:00:26.8]} 35. Kf2 {[%clk 0:00:40.6]} 35... Rd2+ {[%clk 0:00:25.8]} 36. Kg3
{[%clk 0:00:40.6]} 36... Ra2 {[%clk 0:00:21.1]} 37. Rc5 {[%clk 0:00:37.7]} 37...
Rxa3 {[%clk 0:00:16.3]} 38. Bd5 {[%clk 0:00:35.2]} 38... Ka7 {[%clk 0:00:13.7]}
39. Bxb3 {[%clk 0:00:32.9]} 39... Rxb3 {[%clk 0:00:14.6]} 40. Rxb3 {[%clk
0:00:29.3]} 40... axb3 {[%clk 0:00:15.5]} 41. Rb5 {[%clk 0:00:28.8]} 41... Rb8
{[%clk 0:00:14.9]} 42. Ra5+ {[%clk 0:00:28.1]} 42... Kb6 {[%clk 0:00:14.9]} 43.
Ra1 {[%clk 0:00:25.9]} 43... b2 {[%clk 0:00:14.2]} 44. Re1 {[%clk 0:00:21.9]}
44... Kc5 {[%clk 0:00:13.8]} 45. Kf4 {[%clk 0:00:22]} 45... b1=Q {[%clk
0:00:11.8]} 46. Rxb1 {[%clk 0:00:21.3]} 46... Rxb1 {[%clk 0:00:12.7]} 47. Kf5
{[%clk 0:00:22.2]} 47... Rb2 {[%clk 0:00:12.1]} 48. g4 {[%clk 0:00:21.6]} 48...
Kd5 {[%clk 0:00:12.3]} 49. Kg6 {[%clk 0:00:21.3]} 49... Rb7 {[%clk 0:00:12.9]}
50. f4 {[%clk 0:00:20.7]} 50... Ke4 {[%clk 0:00:13.4]} 51. f5 {[%clk 0:00:20.9]}
51... Kf4 {[%clk 0:00:12.9]} 52. Kh7 {[%clk 0:00:20.1]} 52... Kxg4 {[%clk
0:00:13.4]} 53. Kg6 {[%clk 0:00:18.7]} 53... Kf4 {[%clk 0:00:13.9]} 0-1

[Event "*** SCC Grand Prix: Titled Tuesday Blitz"]
[Site "Chess.com"]
[Date "2020.08.11"]
[Round "8"]
[White "CzechmVIII"]
[Black "juancruzarias"]
[Result "1/2-1/2"]
[WhiteElo "2175"]
[BlackElo "2359"]
[TimeControl "180+1"]
[EndTime "11:34:54 PDT"]
[Termination "Game drawn by repetition"]

1. e4 {[%clk 0:03:00.9]} 1... e6 {[%clk 0:02:59.6]} 2. d4 {[%clk 0:03:00.5]}
2... d5 {[%clk 0:03:00.2]} 3. Nc3 {[%clk 0:03:00.7]} 3... Nf6 {[%clk 0:02:59.1]}
4. Bg5 {[%clk 0:03:00.7]} 4... Bb4 {[%clk 0:02:59]} 5. e5 {[%clk 0:03:00.8]}
5... h6 {[%clk 0:02:59.4]} 6. Bc1 {[%clk 0:03:00.9]} 6... Ne4 {[%clk 0:02:58.9]}
7. Qg4 {[%clk 0:03:00.6]} 7... Kf8 {[%clk 0:02:58.3]} 8. Ne2 {[%clk 0:02:57.9]}
8... c5 {[%clk 0:02:55.2]} 9. a3 {[%clk 0:02:56.4]} 9... Bxc3+ {[%clk
0:02:55.1]} 10. bxc3 {[%clk 0:02:54.4]} 10... cxd4 {[%clk 0:02:54.5]} 11. cxd4
{[%clk 0:02:54.5]} 11... f5 {[%clk 0:02:39]} 12. Qg6 {[%clk 0:02:31.7]} 12...
Nc6 {[%clk 0:02:15.1]} 13. f3 {[%clk 0:01:53.5]} 13... Qa5+ {[%clk 0:01:18.8]}
14. c3 {[%clk 0:01:51.9]} 14... Nxd4 {[%clk 0:01:16.1]} 15. fxe4 {[%clk
0:01:32.8]} 15... Nc2+ {[%clk 0:01:16]} 16. Kf2 {[%clk 0:01:26]} 16... Nxa1
{[%clk 0:01:09.4]} 17. Nf4 {[%clk 0:01:16.9]} 17... Nb3 {[%clk 0:00:49.7]} 18.
Be3 {[%clk 0:01:11.7]} 18... Qxc3 {[%clk 0:00:28.3]} 19. Qh5 {[%clk 0:01:05.5]}
19... Bd7 {[%clk 0:00:24.4]} 20. Ng6+ {[%clk 0:01:03.7]} 20... Kg8 {[%clk
0:00:24.9]} 21. Nxh8 {[%clk 0:01:01.6]} 21... f4 {[%clk 0:00:24.8]} 22. Bxf4
{[%clk 0:00:51.7]} 22... Rf8 {[%clk 0:00:24.1]} 23. Ng6 {[%clk 0:00:44.1]} 23...
Be8 {[%clk 0:00:24.3]} 24. g3 {[%clk 0:00:27.3]} 24... Nd4 {[%clk 0:00:22.6]}
25. Be2 {[%clk 0:00:20.9]} 25... Qc2 {[%clk 0:00:19.6]} 26. Re1 {[%clk
0:00:15.7]} 26... Qxe4 {[%clk 0:00:17.1]} 27. Ne7+ {[%clk 0:00:13.7]} 27... Kh8
{[%clk 0:00:16.6]} 28. Qh3 {[%clk 0:00:12]} 28... Nc2 {[%clk 0:00:14.7]} 29. Rc1
{[%clk 0:00:09.6]} 29... Qd4+ {[%clk 0:00:14.8]} 30. Kg2 {[%clk 0:00:09]} 30...
Ne3+ {[%clk 0:00:15]} 31. Bxe3 {[%clk 0:00:09]} 31... Qxe3 {[%clk 0:00:15.6]}
32. Rf1 {[%clk 0:00:08.4]} 32... Qxe2+ {[%clk 0:00:15.5]} 33. Kg1 {[%clk
0:00:07.9]} 33... Qe3+ {[%clk 0:00:14.8]} 34. Kh1 {[%clk 0:00:07.5]} 34... Qe4+
{[%clk 0:00:13.7]} 35. Kg1 {[%clk 0:00:07.9]} 35... Rxf1+ {[%clk 0:00:13.9]} 36.
Qxf1 {[%clk 0:00:07.2]} 36... Qd4+ {[%clk 0:00:13.6]} 37. Kh1 {[%clk 0:00:06.6]}
37... Kh7 {[%clk 0:00:13.8]} 38. Qf8 {[%clk 0:00:05.6]} 38... Qe4+ {[%clk
0:00:14.1]} 39. Kg1 {[%clk 0:00:05.1]} 39... Qe3+ {[%clk 0:00:13.6]} 40. Kh1
{[%clk 0:00:05.4]} 40... Qe1+ {[%clk 0:00:12.3]} 41. Kg2 {[%clk 0:00:05.6]}
41... Qe2+ {[%clk 0:00:12.8]} 42. Kg1 {[%clk 0:00:05.7]} 42... Qe1+ {[%clk
0:00:13]} 43. Kg2 {[%clk 0:00:06.1]} 43... Qe2+ {[%clk 0:00:11.5]} 44. Kg1
{[%clk 0:00:06.4]} 44... Qe3+ {[%clk 0:00:12.4]} 45. Kg2 {[%clk 0:00:06.6]}
45... Qe4+ {[%clk 0:00:10.6]} 46. Kg1 {[%clk 0:00:06.6]} 46... Qd4+ {[%clk
0:00:10]} 47. Kg2 {[%clk 0:00:06.8]} 47... Qb2+ {[%clk 0:00:08.6]} 48. Kg1
{[%clk 0:00:06.8]} 48... Qb1+ {[%clk 0:00:07.4]} 49. Kg2 {[%clk 0:00:07.2]}
49... Qc2+ {[%clk 0:00:07.9]} 50. Kg1 {[%clk 0:00:07.6]} 50... Qd1+ {[%clk
0:00:08]} 51. Kg2 {[%clk 0:00:08.1]} 51... Qe2+ {[%clk 0:00:08.2]} 1/2-1/2

[Event "*** SCC Grand Prix: Titled Tuesday Blitz"]
[Site "Chess.com"]
[Date "2020.08.11"]
[Round "8"]
[White "igorknyazev"]
[Black "gusmaster2262"]
[Result "1-0"]
[WhiteElo "1964"]
[BlackElo "2200"]
[TimeControl "180+1"]
[EndTime "11:34:54 PDT"]
[Termination "igorknyazev won by resignation"]

1. e4 {[%clk 0:02:58.1]} 1... c6 {[%clk 0:02:58.6]} 2. d4 {[%clk 0:02:56.4]}
2... d5 {[%clk 0:02:58.1]} 3. Nc3 {[%clk 0:02:57]} 3... dxe4 {[%clk 0:02:57.6]}
4. Nxe4 {[%clk 0:02:57.5]} 4... Bf5 {[%clk 0:02:57.2]} 5. Ng3 {[%clk 0:02:57.4]}
5... Bg6 {[%clk 0:02:57.1]} 6. N1e2 {[%clk 0:02:57.4]} 6... e6 {[%clk
0:02:53.2]} 7. Nf4 {[%clk 0:02:52.5]} 7... Bd6 {[%clk 0:02:48]} 8. h4 {[%clk
0:02:47.9]} 8... Bxf4 {[%clk 0:02:40.3]} 9. Bxf4 {[%clk 0:02:46.7]} 9... h6
{[%clk 0:02:39.4]} 10. c3 {[%clk 0:02:27.2]} 10... Nf6 {[%clk 0:02:37.6]} 11.
Qb3 {[%clk 0:02:14.8]} 11... Qb6 {[%clk 0:02:33.5]} 12. O-O-O {[%clk 0:02:06.3]}
12... Nbd7 {[%clk 0:02:28.6]} 13. Bd6 {[%clk 0:01:59.9]} 13... O-O-O {[%clk
0:02:15.2]} 14. Bd3 {[%clk 0:01:53.2]} 14... Bxd3 {[%clk 0:02:10.5]} 15. Rxd3
{[%clk 0:01:52.5]} 15... Qa6 {[%clk 0:02:01.3]} 16. Rhd1 {[%clk 0:01:49.3]}
16... Nb6 {[%clk 0:01:55.1]} 17. Be7 {[%clk 0:01:46.9]} 17... Rd5 {[%clk
0:01:34.6]} 18. Bxf6 {[%clk 0:01:45.6]} 18... gxf6 {[%clk 0:01:34.2]} 19. Ne4
{[%clk 0:01:44.3]} 19... Rhd8 {[%clk 0:01:24]} 20. Nxf6 {[%clk 0:01:35.2]} 20...
Rb5 {[%clk 0:01:22]} 21. Qa3 {[%clk 0:01:28.5]} 21... Ra5 {[%clk 0:01:21.1]} 22.
Qb3 {[%clk 0:01:16.7]} 22... Rxa2 {[%clk 0:01:19.1]} 23. Ne4 {[%clk 0:01:05.5]}
23... Ra1+ {[%clk 0:01:15.1]} 24. Kc2 {[%clk 0:01:05.2]} 24... Rxd1 {[%clk
0:01:12.6]} 25. Nc5 {[%clk 0:00:51.1]} 25... Qc4 {[%clk 0:00:56.1]} 26. Qxc4
{[%clk 0:00:43]} 26... Nxc4 {[%clk 0:00:53]} 27. Rxd1 {[%clk 0:00:43.6]} 27...
b6 {[%clk 0:00:49.7]} 28. Nd3 {[%clk 0:00:43.2]} 28... Rg8 {[%clk 0:00:48.1]}
29. g3 {[%clk 0:00:42.7]} 29... Rg6 {[%clk 0:00:46.2]} 30. b3 {[%clk 0:00:42.6]}
30... Nd6 {[%clk 0:00:45.4]} 31. Ne5 {[%clk 0:00:40.2]} 31... Rf6 {[%clk
0:00:45]} 32. f4 {[%clk 0:00:40]} 32... Kc7 {[%clk 0:00:44.3]} 33. Rf1 {[%clk
0:00:37.4]} 33... h5 {[%clk 0:00:43.6]} 34. Kd3 {[%clk 0:00:34.4]} 34... Nf5
{[%clk 0:00:42.9]} 35. g4 {[%clk 0:00:27.1]} 35... hxg4 {[%clk 0:00:41.9]} 36.
Nxg4 {[%clk 0:00:26.5]} 36... Rg6 {[%clk 0:00:41.8]} 37. Ne5 {[%clk 0:00:23.2]}
37... Rg3+ {[%clk 0:00:41.1]} 38. Kd2 {[%clk 0:00:20.4]} 38... f6 {[%clk
0:00:40.8]} 39. Nf3 {[%clk 0:00:13.6]} 39... Nd6 {[%clk 0:00:39.1]} 40. Ke2
{[%clk 0:00:12.8]} 40... Ne4 {[%clk 0:00:37.6]} 41. c4 {[%clk 0:00:12.7]} 41...
Rg4 {[%clk 0:00:31.2]} 42. Rg1 {[%clk 0:00:12.2]} 42... Ng3+ {[%clk 0:00:28.4]}
43. Kf2 {[%clk 0:00:10.7]} 43... Ne4+ {[%clk 0:00:28.1]} 44. Ke3 {[%clk
0:00:10]} 44... Ng3 {[%clk 0:00:26.4]} 45. h5 {[%clk 0:00:08.6]} 45... f5 {[%clk
0:00:21.5]} 46. h6 {[%clk 0:00:07.9]} 46... Rg8 {[%clk 0:00:20.1]} 47. Ng5
{[%clk 0:00:07.4]} 47... Ne4 {[%clk 0:00:17.9]} 48. Nxe4 {[%clk 0:00:06.8]} 1-0